[Event "NJSK 2023 Jeugd C"]
[Site "Almelo, Netherlands"]
[Date "2023.05.05"]
[Round "8.5"]
[White "Van Batenburg, Mees"]
[Black "Ambrona Navarro, Himar"]
[Result "1-0"]
[TimeControl "90min/40moves + 30min + 30sec/move"]
[WhiteElo "2054"]
[BlackElo "1834"]

1. d4 {[%clk 01:30:58]} {[%emt 00:00:03]} Nf6 {[%clk 01:30:48]} {[%emt
00:00:10]} 2. Nc3 {[%clk 01:31:26]} {[%emt 00:00:03]} d5 {[%clk 01:30:10]}
{[%emt 00:01:08]} 3. Bf4 {[%clk 01:31:53]} {[%emt 00:00:03]} e6 {[%clk
01:29:30]} {[%emt 00:01:10]} 4. Nb5 {[%clk 01:31:47]} {[%emt 00:00:36]} Bb4+
{[%clk 01:29:51]} {[%emt 00:00:08]} 5. c3 {[%clk 01:32:11]} {[%emt 00:00:07]}
Ba5 {[%clk 01:30:15]} {[%emt 00:00:06]} 6. a4 {[%clk 01:32:02]} {[%emt
00:00:41]} a6 {[%clk 01:29:54]} {[%emt 00:00:49]} 7. Na3 {[%clk 01:32:10]}
{[%emt 00:00:22]} O-O {[%clk 01:28:18]} {[%emt 00:02:05]} 8. e3 {[%clk
01:29:51]} {[%emt 00:02:50]} Nbd7 {[%clk 01:27:37]} {[%emt 00:01:10]} 9. Nf3
{[%clk 01:28:45]} {[%emt 00:01:37]} Re8 {[%clk 01:27:06]} {[%emt 00:01:00]} 10.
Ne5 {[%clk 01:24:28]} {[%emt 00:04:48]} c6 {[%clk 01:25:00]} {[%emt 00:02:35]}
11. Bd3 {[%clk 01:11:03]} {[%emt 00:13:55]} Bc7 {[%clk 01:20:31]} {[%emt
00:04:59]} 12. Qf3 {[%clk 01:10:51]} {[%emt 00:00:43]} Nxe5 {[%clk 01:12:40]}
{[%emt 00:08:21]} 13. dxe5 {[%clk 01:10:05]} {[%emt 00:01:16]} Nd7 {[%clk
01:13:06]} {[%emt 00:00:04]} 14. Qg3 {[%clk 01:10:07]} {[%emt 00:00:29]} Nf8
{[%clk 01:09:38]} {[%emt 00:03:56]} 15. h4 {[%clk 01:08:48]} {[%emt 00:01:51]}
Kh8 {[%clk 01:06:51]} {[%emt 00:03:17]} 16. Nb1 {[%clk 01:04:51]} {[%emt
00:04:28]} c5 {[%clk 01:05:30]} {[%emt 00:01:50]} 17. Nd2 {[%clk 00:44:58]}
{[%emt 00:20:23]} d4 {[%clk 01:01:33]} {[%emt 00:04:25]} 18. exd4 {[%clk
00:41:35]} {[%emt 00:03:54]} cxd4 {[%clk 01:01:51]} {[%emt 00:00:11]} 19. c4
{[%clk 00:41:45]} {[%emt 00:00:21]} b6 {[%clk 00:49:49]} {[%emt 00:12:31]} 20.
Bg5 {[%clk 00:27:15]} {[%emt 00:15:01]} f6 {[%clk 00:40:15]} {[%emt 00:10:04]}
21. Qf3 {[%clk 00:27:10]} {[%emt 00:00:35]} Bb7 {[%clk 00:36:21]} {[%emt
00:04:23]} 22. Qxb7 {[%clk 00:25:55]} {[%emt 00:01:47]} fxg5 {[%clk 00:35:15]}
{[%emt 00:01:36]} 23. hxg5 {[%clk 00:25:42]} {[%emt 00:00:43]} Kg8 {[%clk
00:34:08]} {[%emt 00:01:36]} 24. f4 {[%clk 00:22:16]} {[%emt 00:03:56]} g6
{[%clk 00:32:42]} {[%emt 00:01:56]} 25. Qf3 {[%clk 00:21:49]} {[%emt 00:00:57]}
Qe7 {[%clk 00:32:12]} {[%emt 00:01:00]} 26. Be4 {[%clk 00:17:00]} {[%emt
00:05:19]} Rab8 {[%clk 00:31:34]} {[%emt 00:01:07]} 27. Bc6 {[%clk 00:16:06]}
{[%emt 00:01:25]} Red8 {[%clk 00:31:34]} {[%emt 00:00:30]} 28. Qb3 {[%clk
00:13:44]} {[%emt 00:02:52]} Qf7 {[%clk 00:30:34]} {[%emt 00:01:29]} 29. Rh4
{[%clk 00:13:17]} {[%emt 00:00:59]} Rdc8 {[%clk 00:29:50]} {[%emt 00:01:12]} 30.
Bf3 {[%clk 00:12:59]} {[%emt 00:00:49]} Bd8 {[%clk 00:27:37]} {[%emt 00:02:43]}
31. Ne4 {[%clk 00:11:42]} {[%emt 00:01:47]} Be7 {[%clk 00:27:28]} {[%emt
00:00:38]} 32. Rg4 {[%clk 00:11:33]} {[%emt 00:00:40]} a5 {[%clk 00:27:24]}
{[%emt 00:00:35]} 33. Kf2 {[%clk 00:09:36]} {[%emt 00:02:27]} Bc5 {[%clk
00:27:04]} {[%emt 00:00:49]} 34. Qd3 {[%clk 00:09:18]} {[%emt 00:00:49]} Be7
{[%clk 00:25:47]} {[%emt 00:01:46]} 35. Kg3 {[%clk 00:09:27]} {[%emt 00:00:21]}
Rd8 {[%clk 00:25:34]} {[%emt 00:00:43]} 36. Rh1 {[%clk 00:09:41]} {[%emt
00:00:16]} Qf5 {[%clk 00:24:55]} {[%emt 00:01:09]} 37. Nf6+ {[%clk 00:09:48]}
{[%emt 00:00:24]} Bxf6 {[%clk 00:23:50]} {[%emt 00:01:34]} 38. Be4 {[%emt
00:00:24]} Qxg4+ {[%clk 00:23:54]} {[%emt 00:00:10]} 39. Kxg4 {[%clk 00:10:36]}
{[%emt 00:00:05]} Bg7 {[%clk 00:24:11]} {[%emt 00:00:12]} 40. Bc6 {[%clk
00:10:44]} {[%emt 00:00:23]} Rbc8 {[%clk 00:24:08]} {[%emt 00:00:31]} 41. Bb5
{[%clk 00:11:11]} {[%emt 00:00:05]} Nd7 {[%clk 00:23:31]} {[%emt 00:01:07]} 42.
Bxd7 {[%clk 00:11:28]} {[%emt 00:00:14]} Rxd7 {[%clk 00:23:52]} {[%emt
00:00:08]} 43. b3 {[%clk 00:11:39]} {[%emt 00:00:19]} Bf8 {[%clk 00:24:06]}
{[%emt 00:00:15]} 44. Rd1 {[%clk 00:11:02]} {[%emt 00:01:08]} Bc5 {[%clk
00:24:22]} {[%emt 00:00:13]} 45. Qe4 {[%clk 00:10:58]} {[%emt 00:00:34]} Rf7
{[%emt 00:01:43]} 46. Rd3 {[%clk 00:10:12]} Kh8 {[%clk 00:24:13]} {[%emt
00:00:40]} 47. Rf3 {[%clk 00:10:22]} {[%emt 00:00:22]} Kg7 {[%clk 00:24:21]}
{[%emt 00:00:22]} 48. Kh3 {[%clk 00:10:10]} {[%emt 00:00:43]} Rcf8 {[%clk
00:24:17]} {[%emt 00:00:33]} 49. g3 {[%clk 00:06:53]} {[%emt 00:03:48]} Rc7
{[%clk 00:22:47]} {[%emt 00:01:59]} 50. Rd3 {[%clk 00:06:37]} {[%emt 00:00:47]}
Rd8 {[%clk 00:22:04]} {[%emt 00:01:12]} 51. g4 {[%clk 00:06:21]} {[%emt
00:00:47]} Rf8 {[%clk 00:22:07]} {[%emt 00:00:25]} 52. Kg3 {[%clk 00:06:33]}
{[%emt 00:00:19]} Kg8 {[%clk 00:22:07]} {[%emt 00:00:29]} 53. Rf3 {[%clk
00:06:55]} {[%emt 00:00:09]} Rcf7 {[%clk 00:21:56]} {[%emt 00:00:40]} 54. Qc6
{[%clk 00:07:17]} {[%emt 00:00:09]} Re7 {[%clk 00:22:09]} {[%emt 00:00:17]} 55.
b4 {[%clk 00:07:16]} {[%emt 00:00:32]} axb4 {[%clk 00:21:11]} {[%emt 00:01:28]}
56. a5 {[%clk 00:07:43]} {[%emt 00:00:04]} Rb8 {[%clk 00:21:21]} {[%emt
00:00:19]} 57. axb6 {[%clk 00:07:01]} {[%emt 00:01:12]} Bxb6 {[%clk 00:21:30]}
{[%emt 00:00:20]} 58. Qd6 {[%clk 00:07:26]} {[%emt 00:00:06]} Rbb7 {[%clk
00:21:44]} {[%emt 00:00:16]} 59. c5 {[%clk 00:06:48]} {[%emt 00:01:08]} Ba5
{[%clk 00:21:40]} {[%emt 00:00:34]} 60. c6 {[%clk 00:06:58]} {[%emt 00:00:20]}
Rbc7 {[%clk 00:21:44]} {[%emt 00:00:26]} 61. Qc5 {[%clk 00:06:43]} {[%emt
00:00:45]} Ra7 {[%clk 00:21:39]} {[%emt 00:00:35]} 62. Qxd4 {[%clk 00:06:50]}
{[%emt 00:00:23]} Ra6 {[%clk 00:21:26]} {[%emt 00:00:41]} 63. Qd6 {[%clk
00:06:05]} {[%emt 00:01:17]} Kf7 {[%clk 00:20:13]} {[%emt 00:01:42]} 64. f5
{[%clk 00:05:37]} {[%emt 00:00:59]} exf5 {[%clk 00:19:09]} {[%emt 00:01:33]} 65.
gxf5 {[%clk 00:06:00]} {[%emt 00:00:08]} gxf5 {[%clk 00:17:55]} {[%emt
00:01:43]} 66. Qf6+ {[%clk 00:06:14]} {[%emt 00:00:17]} Ke8 {[%clk 00:17:41]}
{[%emt 00:00:43]} 67. Qh8+ {[%clk 00:06:40]} {[%emt 00:00:04]} Kf7 {[%clk
00:17:43]} {[%emt 00:00:28]} 68. Rxf5+ {[%clk 00:07:04]} {[%emt 00:00:05]} 1-0

[Event "NJSK 2023 Jeugd C"]
[Site "Almelo, Netherlands"]
[Date "2023.05.05"]
[Round "8.6"]
[White "Aravindhan, Achyuth"]
[Black "Zhu, Chenwu"]
[Result "0-1"]
[TimeControl "90min/40moves + 30min + 30sec/move"]
[WhiteElo "1833"]
[BlackElo "2052"]

1. e4 {[%clk 01:30:59]} {[%emt 00:00:02]} c5 {[%clk 01:30:57]} {[%emt
00:00:02]} 2. Nf3 {[%clk 01:31:24]} {[%emt 00:00:06]} d6 {[%clk 01:31:23]}
{[%emt 00:00:04]} 3. d4 {[%clk 01:31:49]} {[%emt 00:00:04]} cxd4 {[%clk
01:31:49]} {[%emt 00:00:05]} 4. Nxd4 {[%clk 01:32:16]} {[%emt 00:00:04]} Nf6
{[%clk 01:32:16]} {[%emt 00:00:01]} 5. Nc3 {[%clk 01:32:31]} {[%emt 00:00:15]}
g6 {[%clk 01:32:42]} {[%emt 00:00:04]} 6. Be3 {[%clk 01:32:53]} {[%emt
00:00:08]} Bg7 {[%clk 01:33:06]} {[%emt 00:00:05]} 7. f3 {[%clk 01:33:12]}
{[%emt 00:00:11]} O-O {[%clk 01:33:30]} {[%emt 00:00:06]} 8. Qd2 {[%clk
01:33:38]} {[%emt 00:00:04]} Nc6 {[%clk 01:33:55]} {[%emt 00:00:06]} 9. O-O-O
{[%clk 01:33:59]} {[%emt 00:00:08]} d5 {[%clk 01:34:12]} {[%emt 00:00:14]} 10.
Nxc6 {[%clk 01:34:21]} {[%emt 00:00:09]} bxc6 {[%clk 01:34:38]} {[%emt
00:00:04]} 11. Bc4 {[%clk 01:34:43]} {[%emt 00:00:08]} Qc7 {[%clk 01:25:04]}
{[%emt 00:10:04]} 12. exd5 {[%clk 01:34:05]} {[%emt 00:01:07]} cxd5 {[%clk
01:18:47]} {[%emt 00:06:47]} 13. Bxd5 {[%clk 01:34:07]} {[%emt 00:00:28]} Nxd5
{[%clk 01:14:28]} {[%emt 00:04:48]} 14. Nxd5 {[%clk 01:34:15]} {[%emt
00:00:22]} Qb7 {[%clk 00:58:12]} {[%emt 00:16:46]} 15. Qb4 {[%clk 01:34:17]}
{[%emt 00:00:28]} Qxb4 {[%clk 00:56:36]} {[%emt 00:02:06]} 16. Nxb4 {[%clk
01:34:31]} {[%emt 00:00:15]} Rb8 {[%clk 00:55:15]} {[%emt 00:01:52]} 17. Nd3
{[%clk 01:30:05]} {[%emt 00:04:55]} Bf5 {[%clk 00:53:18]} {[%emt 00:02:28]} 18.
c3 {[%clk 01:28:18]} {[%emt 00:02:17]} Rfc8 {[%clk 00:49:17]} {[%emt 00:04:31]}
19. g4 {[%clk 01:03:33]} {[%emt 00:25:15]} Be6 {[%clk 00:48:24]} {[%emt
00:01:23]} 20. Kc2 {[%clk 00:55:18]} {[%emt 00:08:45]} Bxa2 {[%clk 00:45:08]}
{[%emt 00:03:46]} 21. Nc1 {[%clk 00:54:19]} {[%emt 00:01:29]} Be6 {[%clk
00:41:09]} {[%emt 00:04:28]} 22. Bxa7 {[%clk 00:52:21]} {[%emt 00:02:28]} Rb7
{[%clk 00:39:33]} {[%emt 00:02:07]} 23. Bd4 {[%clk 00:52:32]} {[%emt 00:00:19]}
Bh6 {[%clk 00:39:21]} {[%emt 00:00:42]} 24. Kb1 {[%clk 00:48:13]} {[%emt
00:04:47]} f6 {[%clk 00:33:13]} {[%emt 00:06:39]} 25. Rhf1 {[%clk 00:26:19]}
{[%emt 00:22:24]} Bc4 {[%clk 00:33:07]} {[%emt 00:00:36]} 26. Rfe1 {[%clk
00:24:07]} {[%emt 00:02:42]} e5 {[%clk 00:23:31]} {[%emt 00:10:06]} 27. Bf2
{[%clk 00:22:48]} {[%emt 00:01:48]} Kf7 {[%clk 00:21:36]} {[%emt 00:02:27]} 28.
h4 {[%clk 00:21:44]} {[%emt 00:01:33]} Be6 {[%clk 00:19:29]} {[%emt 00:02:37]}
29. Na2 {[%clk 00:14:09]} {[%emt 00:08:06]} Bf8 {[%clk 00:17:10]} {[%emt
00:02:49]} 30. Re2 {[%clk 00:11:02]} {[%emt 00:03:36]} Bb3 {[%clk 00:16:28]}
{[%emt 00:01:12]} 31. Rdd2 {[%clk 00:07:22]} {[%emt 00:04:10]} Be7 {[%clk
00:14:47]} {[%emt 00:02:11]} 32. Re1 {[%clk 00:07:15]} {[%emt 00:00:37]} Rb5
{[%clk 00:14:11]} {[%emt 00:01:05]} 33. Bg3 {[%clk 00:05:59]} {[%emt 00:01:47]}
Be6 {[%clk 00:11:28]} {[%emt 00:03:13]} 34. Bh2 {[%clk 00:04:23]} {[%emt
00:02:06]} Ra8 {[%clk 00:09:08]} {[%emt 00:02:50]} 35. Nc1 {[%clk 00:04:32]}
{[%emt 00:00:22]} Rc8 {[%clk 00:09:06]} {[%emt 00:00:32]} 36. Na2 {[%clk
00:04:41]} {[%emt 00:00:21]} Bd5 {[%clk 00:07:37]} {[%emt 00:01:59]} 37. Re3
{[%clk 00:02:27]} {[%emt 00:02:43]} Rd8 {[%clk 00:06:21]} {[%emt 00:01:47]} 38.
Red3 {[%clk 00:01:36]} {[%emt 00:01:20]} e4 {[%clk 00:04:38]} {[%emt 00:02:13]}
39. c4 {[%clk 00:00:41]} {[%emt 00:01:25]} exd3 {[%clk 00:04:37]} {[%emt
00:00:31]} 40. cxb5 {[%clk 00:01:10]} Bxf3 {[%clk 00:05:00]} {[%emt 00:00:07]}
41. Nc3 {[%clk 00:00:44]} {[%emt 00:00:56]} Bc5 {[%clk 00:04:51]} {[%emt
00:00:38]} 42. Bf4 {[%clk 00:00:45]} {[%emt 00:00:30]} Bxg4 {[%clk 00:04:39]}
{[%emt 00:00:42]} 43. Na2 {[%clk 00:00:44]} {[%emt 00:00:32]} Bf5 {[%clk
00:04:05]} {[%emt 00:01:04]} 44. b4 {[%clk 00:01:07]} {[%emt 00:00:06]} Bb6
{[%clk 00:03:20]} {[%emt 00:01:14]} 45. Kb2 {[%clk 00:01:10]} {[%emt 00:00:27]}
Rc8 {[%clk 00:02:55]} {[%emt 00:00:55]} 46. Nc1 {[%clk 00:01:24]} {[%emt
00:00:16]} Bd4+ {[%clk 00:03:12]} {[%emt 00:00:13]} 47. Kb3 {[%clk 00:00:51]}
{[%emt 00:00:57]} Rxc1 {[%clk 00:03:21]} {[%emt 00:00:27]} 48. Ra2 {[%clk
00:00:33]} {[%emt 00:00:48]} Be6+ {[%clk 00:03:40]} {[%emt 00:00:11]} 0-1

[Event "NJSK 2023 Jeugd C"]
[Site "Almelo, Netherlands"]
[Date "2023.05.05"]
[Round "8.7"]
[White "Zecha, Oscar"]
[Black "Katpatal, Akshaj"]
[Result "1/2-1/2"]
[TimeControl "90min/40moves + 30min + 30sec/move"]
[WhiteElo "1879"]
[BlackElo "1840"]

1. e4 {[%clk 01:30:56]} {[%emt 00:00:04]} e5 {[%clk 01:31:20]} {[%emt
00:00:10]} 2. Nf3 {[%clk 01:31:24]} {[%emt 00:00:02]} Nf6 {[%clk 01:31:40]}
{[%emt 00:00:12]} 3. Nxe5 {[%clk 01:31:43]} {[%emt 00:00:08]} d6 {[%clk
01:32:03]} {[%emt 00:00:07]} 4. Nf3 {[%clk 01:32:09]} {[%emt 00:00:04]} Nxe4
{[%clk 01:32:29]} {[%emt 00:00:05]} 5. Nc3 {[%clk 01:32:25]} {[%emt 00:00:13]}
Nxc3 {[%clk 01:32:54]} {[%emt 00:00:06]} 6. dxc3 {[%clk 01:32:54]} Be7 {[%clk
01:33:12]} {[%emt 00:00:13]} 7. Be3 {[%clk 01:33:21]} {[%emt 00:00:03]} Nc6
{[%clk 01:32:32]} {[%emt 00:01:10]} 8. Qd2 {[%clk 01:33:19]} {[%emt 00:00:32]}
Be6 {[%clk 01:32:55]} {[%emt 00:00:08]} 9. Nd4 {[%clk 01:30:33]} {[%emt
00:03:15]} Nxd4 {[%clk 01:32:44]} {[%emt 00:00:41]} 10. cxd4 {[%clk 01:30:13]}
{[%emt 00:00:50]} d5 {[%clk 01:33:08]} {[%emt 00:00:07]} 11. Bd3 {[%clk
01:29:22]} {[%emt 00:01:20]} Qd7 {[%clk 01:28:47]} {[%emt 00:04:50]} 12. O-O
{[%clk 01:27:54]} {[%emt 00:01:59]} O-O {[%clk 01:26:15]} {[%emt 00:03:02]} 13.
Rac1 {[%clk 01:22:27]} {[%emt 00:05:57]} Rad8 {[%clk 01:12:00]} {[%emt
00:14:45]} 14. c4 {[%clk 01:13:59]} {[%emt 00:08:57]} dxc4 {[%emt 00:05:15]} 15.
Bxc4 {[%clk 01:14:00]} {[%emt 00:00:17]} c6 {[%clk 01:01:38]} {[%emt 00:06:20]}
16. Rfe1 {[%clk 01:06:06]} {[%emt 00:08:24]} Bxc4 {[%clk 00:44:13]} {[%emt
00:17:55]} 17. Rxc4 {[%clk 01:05:14]} {[%emt 00:01:22]} c5 {[%clk 00:44:21]}
{[%emt 00:00:23]} 18. Rd1 {[%clk 00:45:03]} {[%emt 00:20:40]} Qd5 {[%clk
00:36:38]} {[%emt 00:08:13]} 19. Ra4 {[%clk 00:41:12]} {[%emt 00:04:21]} a6
{[%clk 00:35:44]} {[%emt 00:01:25]} 20. Ra5 {[%clk 00:37:51]} {[%emt 00:03:50]}
b6 {[%clk 00:32:55]} {[%emt 00:03:20]} 21. Rxa6 {[%clk 00:36:55]} {[%emt
00:01:25]} Qb7 {[%clk 00:29:39]} {[%emt 00:03:46]} 22. Qe2 {[%clk 00:34:35]}
{[%emt 00:02:50]} b5 {[%clk 00:27:51]} {[%emt 00:02:19]} 23. Ra5 {[%clk
00:34:20]} {[%emt 00:00:45]} c4 {[%clk 00:27:58]} {[%emt 00:00:23]} 24. a4
{[%clk 00:33:56]} {[%emt 00:00:54]} Rd5 {[%clk 00:25:27]} {[%emt 00:03:01]} 25.
Rc1 {[%clk 00:29:28]} {[%emt 00:04:58]} Rc8 {[%clk 00:24:49]} {[%emt 00:01:07]}
26. Qg4 {[%clk 00:23:20]} {[%emt 00:06:38]} f5 {[%clk 00:20:05]} {[%emt
00:05:15]} 27. Qf3 {[%clk 00:23:15]} {[%emt 00:00:35]} Bd8 {[%clk 00:19:31]}
{[%emt 00:01:04]} 28. Ra7 {[%clk 00:23:02]} {[%emt 00:00:44]} Qc6 {[%emt
00:03:26]} 29. b3 {[%clk 00:18:35]} {[%emt 00:04:55]} Bf6 {[%clk 00:13:55]}
{[%emt 00:03:11]} 30. Ra6 {[%clk 00:13:31]} {[%emt 00:05:34]} Qd7 {[%clk
00:13:07]} {[%emt 00:01:18]} 31. axb5 {[%clk 00:13:23]} {[%emt 00:00:38]} Qxb5
{[%clk 00:05:00]} {[%emt 00:08:37]} 32. Rb6 {[%clk 00:13:15]} {[%emt 00:00:38]}
Qd7 {[%clk 00:05:15]} {[%emt 00:00:15]} 33. bxc4 {[%clk 00:13:16]} {[%emt
00:00:30]} Bxd4 {[%clk 00:03:45]} {[%emt 00:01:59]} 34. Bxd4 {[%clk 00:07:43]}
{[%emt 00:06:36]} Rxd4 {[%clk 00:04:09]} {[%emt 00:00:07]} 35. Qb3 {[%clk
00:05:04]} {[%emt 00:03:09]} Rd3 {[%clk 00:04:17]} {[%emt 00:00:22]} 36. Qc2
{[%clk 00:02:57]} {[%emt 00:02:37]} Rd2 {[%clk 00:04:36]} {[%emt 00:00:11]} 37.
Qb1 {[%clk 00:01:50]} {[%emt 00:01:37]} Qd4 {[%clk 00:04:50]} {[%emt 00:00:15]}
38. Rf1 {[%clk 00:01:23]} {[%emt 00:00:57]} Qxc4 {[%clk 00:05:09]} {[%emt
00:00:09]} 39. Rb8 {[%clk 00:01:13]} {[%emt 00:00:42]} Rc2 {[%clk 00:04:33]}
{[%emt 00:01:06]} 40. Rxc8+ {[%clk 00:00:54]} {[%emt 00:00:50]} Qxc8 {[%clk
00:04:56]} {[%emt 00:00:07]} 41. Qb3+ {[%clk 00:01:17]} {[%emt 00:00:08]} Qc4
{[%clk 00:05:06]} {[%emt 00:00:20]} 42. Qb8+ {[%clk 00:01:36]} {[%emt
00:00:11]} Qc8 {[%clk 00:05:21]} {[%emt 00:00:15]} 43. Qf4 {[%clk 00:01:19]}
{[%emt 00:00:46]} Rc4 {[%clk 00:05:27]} {[%emt 00:00:24]} 44. Qf3 {[%clk
00:01:36]} {[%emt 00:00:14]} Rc3 {[%clk 00:05:43]} {[%emt 00:00:14]} 45. Qd5+
{[%clk 00:02:01]} {[%emt 00:00:05]} Kh8 {[%clk 00:06:03]} {[%emt 00:00:09]} 46.
Qd2 {[%clk 00:01:33]} {[%emt 00:00:59]} Rc2 {[%clk 00:06:26]} {[%emt 00:00:07]}
47. Qf4 {[%clk 00:02:03]} Rc4 {[%clk 00:06:48]} {[%emt 00:00:08]} 48. Qd2
{[%clk 00:00:39]} {[%emt 00:01:54]} h6 {[%clk 00:06:07]} {[%emt 00:01:11]}
1/2-1/2

[Event "NJSK 2023 Jeugd C"]
[Site "Almelo, Netherlands"]
[Date "2023.05.05"]
[Round "8.8"]
[White "Kazarjan, Gachatur"]
[Black "Roorda, Cas"]
[Result "1/2-1/2"]
[TimeControl "90min/40moves + 30min + 30sec/move"]
[WhiteElo "1872"]
[BlackElo "1769"]

1. b4 {[%clk 01:30:56]} {[%emt 00:00:03]} e6 {[%clk 01:28:47]} {[%emt
00:02:15]} 2. Bb2 {[%clk 01:31:15]} {[%emt 00:00:11]} Nf6 {[%clk 01:29:08]}
{[%emt 00:00:08]} 3. b5 {[%clk 01:31:32]} {[%emt 00:00:12]} d5 {[%clk
01:25:25]} {[%emt 00:04:14]} 4. e3 {[%clk 01:31:19]} {[%emt 00:00:43]} c5
{[%clk 01:22:12]} {[%emt 00:03:43]} 5. Nf3 {[%clk 01:31:30]} {[%emt 00:00:18]}
Bd6 {[%clk 01:19:05]} {[%emt 00:03:37]} 6. c4 {[%clk 01:31:28]} {[%emt
00:00:32]} O-O {[%clk 01:17:43]} {[%emt 00:01:52]} 7. d4 {[%clk 01:31:31]}
{[%emt 00:00:27]} Nbd7 {[%clk 01:12:43]} {[%emt 00:05:31]} 8. Be2 {[%clk
01:30:18]} {[%emt 00:01:43]} dxc4 {[%clk 01:11:32]} {[%emt 00:01:41]} 9. Bxc4
{[%clk 01:30:27]} {[%emt 00:00:21]} Qc7 {[%clk 01:10:07]} {[%emt 00:01:54]} 10.
Nbd2 {[%clk 01:28:32]} {[%emt 00:02:26]} a6 {[%clk 01:04:26]} {[%emt 00:06:12]}
11. a4 {[%clk 01:27:56]} {[%emt 00:01:05]} axb5 {[%clk 01:04:07]} {[%emt
00:00:49]} 12. axb5 {[%clk 01:28:20]} {[%emt 00:00:07]} Rxa1 {[%clk 01:04:32]}
{[%emt 00:00:05]} 13. Bxa1 {[%clk 01:28:24]} {[%emt 00:00:26]} b6 {[%clk
00:55:05]} {[%emt 00:09:57]} 14. O-O {[%clk 01:28:03]} {[%emt 00:00:50]} Bb7
{[%clk 00:55:28]} {[%emt 00:00:07]} 15. h3 {[%clk 01:28:28]} {[%emt 00:00:06]}
Ne4 {[%clk 00:53:01]} {[%emt 00:02:56]} 16. Qb3 {[%clk 01:22:18]} {[%emt
00:06:40]} Ndf6 {[%clk 00:45:28]} {[%emt 00:08:03]} 17. Nxe4 {[%clk 01:14:08]}
{[%emt 00:08:41]} Bxe4 {[%clk 00:39:10]} {[%emt 00:06:48]} 18. Nd2 {[%clk
01:13:46]} {[%emt 00:00:52]} Bb7 {[%clk 00:36:04]} {[%emt 00:03:37]} 19. Bd3
{[%clk 01:10:02]} {[%emt 00:04:13]} e5 {[%clk 00:35:11]} {[%emt 00:01:23]} 20.
Nc4 {[%clk 01:06:42]} {[%emt 00:03:50]} exd4 {[%clk 00:32:54]} {[%emt
00:02:48]} 21. exd4 {[%clk 01:05:43]} {[%emt 00:01:29]} Bd5 {[%clk 00:32:18]}
{[%emt 00:01:06]} 22. Qc2 {[%clk 01:04:15]} {[%emt 00:01:57]} Bxc4 {[%clk
00:29:20]} {[%emt 00:03:28]} 23. Qxc4 {[%clk 01:03:37]} {[%emt 00:01:08]} Re8
{[%clk 00:23:54]} {[%emt 00:05:56]} 24. Qa4 {[%clk 00:52:24]} {[%emt 00:11:43]}
cxd4 {[%clk 00:20:08]} {[%emt 00:04:16]} 25. Bxd4 {[%clk 00:52:12]} {[%emt
00:00:42]} Nd5 {[%clk 00:18:40]} {[%emt 00:01:58]} 26. Qb3 {[%clk 00:50:33]}
{[%emt 00:02:09]} Nf4 {[%clk 00:18:06]} {[%emt 00:01:04]} 27. Rd1 {[%emt
00:02:16]} 1/2-1/2

[Event "NJSK 2023 Jeugd C"]
[Site "Almelo, Netherlands"]
[Date "2023.05.05"]
[Round "8.9"]
[White "Lopes, Samuel"]
[Black "Wortman, Rawi"]
[Result "1/2-1/2"]
[TimeControl "90min/40moves + 30min + 30sec/move"]
[WhiteElo "1865"]
[BlackElo "1668"]

1. e4 {[%clk 01:30:55]} {[%emt 00:00:04]} c5 {[%clk 01:30:53]} {[%emt
00:00:07]} 2. Nf3 {[%clk 01:31:17]} {[%emt 00:00:08]} d6 {[%clk 01:31:19]}
{[%emt 00:00:07]} 3. Bb5+ {[%clk 01:31:40]} {[%emt 00:00:05]} Bd7 {[%clk
01:31:42]} {[%emt 00:00:08]} 4. c4 {[%clk 01:32:04]} {[%emt 00:00:06]} Nc6
{[%clk 01:32:08]} {[%emt 00:00:04]} 5. Nc3 {[%clk 01:32:26]} {[%emt 00:00:08]}
Nf6 {[%clk 01:32:00]} {[%emt 00:00:38]} 6. O-O {[%clk 01:32:35]} {[%emt
00:00:21]} g6 {[%clk 01:32:04]} {[%emt 00:00:26]} 7. h3 {[%clk 01:32:53]}
{[%emt 00:00:11]} Bg7 {[%emt 00:00:13]} 8. Rb1 {[%clk 01:33:13]} {[%emt
00:00:08]} a6 {[%clk 01:32:18]} {[%emt 00:00:36]} 9. Bxc6 {[%clk 01:32:50]}
{[%emt 00:00:53]} Bxc6 {[%clk 01:32:19]} {[%emt 00:00:28]} 10. d3 {[%clk
01:31:56]} {[%emt 00:01:24]} O-O {[%clk 01:31:51]} {[%emt 00:00:58]} 11. a4
{[%clk 01:24:21]} {[%emt 00:08:05]} Qd7 {[%clk 01:26:31]} {[%emt 00:05:51]} 12.
Re1 {[%clk 01:17:03]} {[%emt 00:07:48]} b6 {[%clk 01:17:11]} {[%emt 00:09:50]}
13. Bd2 {[%clk 01:07:19]} {[%emt 00:10:14]} Rfb8 {[%clk 01:11:04]} {[%emt
00:06:37]} 14. Qc2 {[%clk 00:51:39]} {[%emt 00:16:09]} Ne8 {[%clk 01:05:11]}
{[%emt 00:06:24]} 15. b3 {[%clk 00:50:33]} {[%emt 00:01:36]} Nc7 {[%clk
01:00:32]} {[%emt 00:05:09]} 16. Re2 {[%clk 00:40:54]} {[%emt 00:10:09]} b5
{[%clk 00:55:20]} {[%emt 00:05:41]} 17. axb5 {[%clk 00:40:47]} {[%emt
00:00:38]} axb5 {[%clk 00:55:42]} {[%emt 00:00:08]} 18. cxb5 {[%clk 00:40:35]}
{[%emt 00:00:42]} Nxb5 {[%clk 00:55:39]} {[%emt 00:00:32]} 19. Nxb5 {[%clk
00:40:49]} {[%emt 00:00:15]} Bxb5 {[%clk 00:55:30]} {[%emt 00:00:39]} 20. Bc3
{[%clk 00:38:06]} {[%emt 00:03:14]} 1/2-1/2